[Event "*** Titled Tuesday 3|2 Blitz"]
[Site "Chess.com"]
[Date "2015.02.24"]
[Round "1"]
[White "Gevorg_Harutjunyan"]
[Black "oggy1984"]
[Result "1-0"]
[WhiteElo "2514"]
[BlackElo "2202"]
[TimeControl "180+2"]
[EndTime "11:11:09 PST"]
[Termination "Gevorg_Harutjunyan won by resignation"]

1. e4 {[%clk 0:02:56.3]} 1... e5 {[%clk 0:02:50.7]} 2. Nf3 {[%clk 0:02:57.2]}
2... Nc6 {[%clk 0:02:51.7]} 3. Bb5 {[%clk 0:02:57.9]} 3... a6 {[%clk 0:02:52.4]}
4. Ba4 {[%clk 0:02:58.5]} 4... d6 {[%clk 0:02:53.4]} 5. c3 {[%clk 0:02:58.7]}
5... Bd7 {[%clk 0:02:49.1]} 6. d4 {[%clk 0:02:59.3]} 6... Nf6 {[%clk 0:02:44.1]}
7. O-O {[%clk 0:02:59.5]} 7... Be7 {[%clk 0:02:40.4]} 8. Re1 {[%clk 0:03:00.5]}
8... O-O {[%clk 0:02:40]} 9. Nbd2 {[%clk 0:03:01.6]} 9... Re8 {[%clk 0:02:38.8]}
10. Bb3 {[%clk 0:02:54.1]} 10... Bf8 {[%clk 0:02:35.8]} 11. Ng5 {[%clk
0:02:52.5]} 11... Re7 {[%clk 0:02:31.3]} 12. Ngf3 {[%clk 0:02:35.9]} 12... Re8
{[%clk 0:02:21.9]} 13. h3 {[%clk 0:02:32.2]} 13... g6 {[%clk 0:02:12.2]} 14. Ng5
{[%clk 0:02:26.5]} 14... Re7 {[%clk 0:02:09.1]} 15. dxe5 {[%clk 0:02:27.8]}
15... dxe5 {[%clk 0:02:03.6]} 16. Nf1 {[%clk 0:02:26.4]} 16... h6 {[%clk
0:02:01.1]} 17. Nf3 {[%clk 0:02:25]} 17... Be6 {[%clk 0:01:57.2]} 18. Qe2 {[%clk
0:02:21]} 18... Nh5 {[%clk 0:01:47.9]} 19. Bxe6 {[%clk 0:02:10.6]} 19... Rxe6
{[%clk 0:01:46.5]} 20. Rd1 {[%clk 0:02:10.2]} 20... Rd6 {[%clk 0:01:44.2]} 21.
Be3 {[%clk 0:02:09.7]} 21... Rxd1 {[%clk 0:01:25.8]} 22. Rxd1 {[%clk 0:02:09.6]}
22... Qe8 {[%clk 0:01:25.5]} 23. Rd5 {[%clk 0:02:04]} 23... Rd8 {[%clk
0:01:05.5]} 24. Qd2 {[%clk 0:02:00]} 24... Kh7 {[%clk 0:01:03.2]} 25. Rxd8
{[%clk 0:01:59.8]} 25... Nxd8 {[%clk 0:01:01]} 26. g4 {[%clk 0:01:44.6]} 26...
Nf6 {[%clk 0:00:53.1]} 27. Ng3 {[%clk 0:01:46]} 27... Nc6 {[%clk 0:00:49.4]} 28.
g5 {[%clk 0:01:45.2]} 28... hxg5 {[%clk 0:00:47.8]} 29. Nxg5+ {[%clk 0:01:46.1]}
29... Kg8 {[%clk 0:00:47]} 30. Qe2 {[%clk 0:01:45.9]} 30... b5 {[%clk
0:00:39.4]} 31. h4 {[%clk 0:01:45.4]} 31... Nd8 {[%clk 0:00:35.7]} 32. h5 {[%clk
0:01:46]} 32... Ne6 {[%clk 0:00:36.5]} 33. hxg6 {[%clk 0:01:45.5]} 33... fxg6
{[%clk 0:00:38.4]} 34. Qf3 {[%clk 0:01:44.7]} 34... Bg7 {[%clk 0:00:32.8]} 35.
Qd1 {[%clk 0:01:43.6]} 35... Nxg5 {[%clk 0:00:18.3]} 36. Bxg5 {[%clk 0:01:44.1]}
36... Qc6 {[%clk 0:00:15.6]} 37. Qd8+ {[%clk 0:01:38.8]} 37... Kf7 {[%clk
0:00:16.1]} 38. Qd3 {[%clk 0:01:28.9]} 38... Nd7 {[%clk 0:00:12.2]} 39. Qf3+
{[%clk 0:01:28.2]} 39... Kg8 {[%clk 0:00:13.2]} 40. Qg4 {[%clk 0:01:28.7]} 40...
Kf7 {[%clk 0:00:11.4]} 41. Qh4 {[%clk 0:01:18.4]} 41... Qe6 {[%clk 0:00:06.9]}
42. Bd8 {[%clk 0:01:17.7]} 42... Nf6 {[%clk 0:00:02.5]} 43. Bxc7 {[%clk
0:01:14.4]} 43... Qxa2 {[%clk 0:00:03.2]} 44. Bxe5 {[%clk 0:01:13.1]} 44... Qxb2
{[%clk 0:00:04.4]} 45. Bd4 {[%clk 0:01:11.8]} 45... Qb1+ {[%clk 0:00:04.9]} 46.
Kg2 {[%clk 0:01:13]} 46... Qd1 {[%clk 0:00:05.7]} 47. e5 {[%clk 0:01:11.9]}
47... Nh5 {[%clk 0:00:06.6]} 48. Nxh5 {[%clk 0:01:07.4]} 48... Qxh5 {[%clk
0:00:08.5]} 49. e6+ {[%clk 0:01:07.8]} 49... Kxe6 {[%clk 0:00:08.3]} 50. Qxh5
{[%clk 0:00:44.8]} 50... gxh5 {[%clk 0:00:10.2]} 51. Bxg7 {[%clk 0:00:46.7]}
51... a5 {[%clk 0:00:11.2]} 52. Bf8 {[%clk 0:00:47.1]} 52... Kf5 {[%clk
0:00:10.8]} 53. Kg3 {[%clk 0:00:47.2]} 53... h4+ {[%clk 0:00:09.5]} 54. Kf3
{[%clk 0:00:40.3]} 54... Ke5 {[%clk 0:00:05.8]} 55. Be7 {[%clk 0:00:39.7]} 55...
h3 {[%clk 0:00:06.6]} 56. Kg3 {[%clk 0:00:38.7]} 56... Ke4 {[%clk 0:00:07.6]}
57. f3+ {[%clk 0:00:40]} 57... Ke3 {[%clk 0:00:04.5]} 58. Bc5+ {[%clk
0:00:40.4]} 58... Kd3 {[%clk 0:00:05.4]} 59. Kxh3 {[%clk 0:00:38]} 59... Kc4
{[%clk 0:00:05]} 60. Be7 {[%clk 0:00:24.1]} 60... Kxc3 {[%clk 0:00:06]} 61. f4
{[%clk 0:00:25.6]} 61... Kd4 {[%clk 0:00:06.8]} 62. Kg4 {[%clk 0:00:26.7]} 62...
b4 {[%clk 0:00:07.2]} 63. f5 {[%clk 0:00:28.2]} 63... Ke5 {[%clk 0:00:07.3]} 64.
Kg5 {[%clk 0:00:29.5]} 64... b3 {[%clk 0:00:07.5]} 65. Bf6+ {[%clk 0:00:29.5]}
65... Kd6 {[%clk 0:00:07.9]} 66. Bb2 {[%clk 0:00:30.9]} 66... Ke7 {[%clk
0:00:08.9]} 67. Kg6 {[%clk 0:00:32.3]} 67... a4 {[%clk 0:00:09]} 68. f6+ {[%clk
0:00:33.1]} 68... Ke6 {[%clk 0:00:07]} 69. f7 {[%clk 0:00:34.3]} 1-0

[Event "*** Titled Tuesday 3|2 Blitz"]
[Site "Chess.com"]
[Date "2015.02.24"]
[Round "1"]
[White "Rijeka1999"]
[Black "Nouki"]
[Result "0-1"]
[WhiteElo "2273"]
[BlackElo "2639"]
[TimeControl "180+2"]
[EndTime "11:11:19 PST"]
[Termination "Nouki won by checkmate"]

1. e4 {[%clk 0:02:50.2]} 1... Nf6 {[%clk 0:02:58.2]} 2. e5 {[%clk 0:02:51]} 2...
Nd5 {[%clk 0:02:59.3]} 3. d4 {[%clk 0:02:52.7]} 3... d6 {[%clk 0:03:00.6]} 4.
Nf3 {[%clk 0:02:54.4]} 4... g6 {[%clk 0:02:59.5]} 5. Bc4 {[%clk 0:02:54.9]} 5...
Nb6 {[%clk 0:03:00.6]} 6. Bb3 {[%clk 0:02:56]} 6... Bg7 {[%clk 0:03:02.2]} 7.
Ng5 {[%clk 0:02:57.1]} 7... e6 {[%clk 0:03:03.3]} 8. Qf3 {[%clk 0:02:57]} 8...
Qd7 {[%clk 0:03:04.4]} 9. exd6 {[%clk 0:02:36.9]} 9... cxd6 {[%clk 0:03:01.8]}
10. c3 {[%clk 0:02:37]} 10... h6 {[%clk 0:02:47]} 11. Ne4 {[%clk 0:02:36.6]}
11... f5 {[%clk 0:02:47]} 12. Ng3 {[%clk 0:02:33.9]} 12... O-O {[%clk
0:02:44.1]} 13. O-O {[%clk 0:02:33.1]} 13... Kh7 {[%clk 0:02:33.8]} 14. a4
{[%clk 0:02:23.4]} 14... Qe7 {[%clk 0:01:51.4]} 15. a5 {[%clk 0:02:14.7]} 15...
N6d7 {[%clk 0:01:52.2]} 16. a6 {[%clk 0:02:14.7]} 16... Nb6 {[%clk 0:01:34.1]}
17. Nd2 {[%clk 0:01:55.7]} 17... bxa6 {[%clk 0:01:20]} 18. Re1 {[%clk
0:01:46.2]} 18... e5 {[%clk 0:01:19.9]} 19. dxe5 {[%clk 0:01:41.6]} 19... dxe5
{[%clk 0:01:21.8]} 20. Nc4 {[%clk 0:01:42.8]} 20... Bb7 {[%clk 0:01:20.7]} 21.
Qe2 {[%clk 0:01:43.1]} 21... N8d7 {[%clk 0:01:16.7]} 22. Na5 {[%clk 0:01:42.3]}
22... Nc5 {[%clk 0:01:15.7]} 23. Ba2 {[%clk 0:01:37.5]} 23... f4 {[%clk
0:01:13.7]} 24. Nxb7 {[%clk 0:01:31]} 24... fxg3 {[%clk 0:01:13.7]} 25. hxg3
{[%clk 0:01:22]} 25... Nxb7 {[%clk 0:01:06.2]} 26. Be3 {[%clk 0:01:18.7]} 26...
a5 {[%clk 0:00:58.8]} 27. Qb5 {[%clk 0:01:15.3]} 27... a4 {[%clk 0:00:57.3]} 28.
Bb1 {[%clk 0:01:14.4]} 28... Nd6 {[%clk 0:00:54.5]} 29. Qd3 {[%clk 0:01:15.4]}
29... Nf5 {[%clk 0:00:49.8]} 30. Qe4 {[%clk 0:01:14.2]} 30... Qf6 {[%clk
0:00:48]} 31. Bc5 {[%clk 0:01:13.9]} 31... Rfe8 {[%clk 0:00:47.2]} 32. g4 {[%clk
0:01:10]} 32... Nh4 {[%clk 0:00:43.8]} 33. Bd3 {[%clk 0:01:02]} 33... Rac8
{[%clk 0:00:44.5]} 34. Be3 {[%clk 0:01:02.6]} 34... Red8 {[%clk 0:00:45.2]} 35.
Be2 {[%clk 0:01:03.8]} 35... Nd5 {[%clk 0:00:44.2]} 36. Bxa7 {[%clk 0:01:03.8]}
36... Nf4 {[%clk 0:00:38.2]} 37. Bf1 {[%clk 0:01:04.8]} 37... Ne6 {[%clk
0:00:37.8]} 38. Rxa4 {[%clk 0:01:01.7]} 38... Nc5 {[%clk 0:00:35.2]} 39. Bxc5
{[%clk 0:01:02.3]} 39... Rxc5 {[%clk 0:00:37.1]} 40. Ra6 {[%clk 0:01:03.4]}
40... Qf4 {[%clk 0:00:35.8]} 41. Qb7 {[%clk 0:00:43.4]} 41... Rf8 {[%clk
0:00:33.3]} 42. Re2 {[%clk 0:00:39.1]} 42... Rcc8 {[%clk 0:00:30]} 43. Ra7
{[%clk 0:00:39.7]} 43... Qf6 {[%clk 0:00:31.6]} 44. Ra6 {[%clk 0:00:36]} 44...
Qf7 {[%clk 0:00:31.8]} 45. Qe4 {[%clk 0:00:36.1]} 45... Rcd8 {[%clk 0:00:31.5]}
46. Rb6 {[%clk 0:00:35.5]} 46... Rd1 {[%clk 0:00:29.9]} 47. Rb7 {[%clk
0:00:36.6]} 47... Qf4 {[%clk 0:00:30.7]} 48. Qxf4 {[%clk 0:00:35.1]} 48... exf4
{[%clk 0:00:31.3]} 49. Ree7 {[%clk 0:00:35.5]} 49... Rg8 {[%clk 0:00:32.8]} 50.
f3 {[%clk 0:00:33.5]} 50... h5 {[%clk 0:00:32.2]} 51. gxh5 {[%clk 0:00:33.7]}
51... gxh5 {[%clk 0:00:34.1]} 52. Kf2 {[%clk 0:00:34.9]} 52... Rd6 {[%clk
0:00:34.9]} 53. Red7 {[%clk 0:00:34.8]} 53... Rd8 {[%clk 0:00:33.7]} 54. Rxg7+
{[%clk 0:00:33.3]} 54... Kh6 {[%clk 0:00:35.2]} 55. Be2 {[%clk 0:00:30.5]} 55...
Nf5 {[%clk 0:00:34.6]} 56. Rgf7 {[%clk 0:00:28.3]} 56... Kg6 {[%clk 0:00:36.1]}
57. Rfc7 {[%clk 0:00:26.2]} 57... Rd2 {[%clk 0:00:36.3]} 58. Rc6+ {[%clk
0:00:26.4]} 58... Kg5 {[%clk 0:00:37]} 59. Rc5 {[%clk 0:00:23.2]} 59... Re8
{[%clk 0:00:36.6]} 60. Rbb5 {[%clk 0:00:22.3]} 60... Rexe2+ {[%clk 0:00:36.5]}
61. Kf1 {[%clk 0:00:23.7]} 61... Rf2+ {[%clk 0:00:37.1]} 62. Ke1 {[%clk
0:00:25.3]} 62... Rfe2+ {[%clk 0:00:29.5]} 63. Kf1 {[%clk 0:00:23.3]} 63... Rf2+
{[%clk 0:00:25.1]} 64. Ke1 {[%clk 0:00:24.1]} 64... Rde2+ {[%clk 0:00:26.1]} 65.
Kd1 {[%clk 0:00:24.8]} 65... Rd2+ {[%clk 0:00:25.3]} 66. Ke1 {[%clk 0:00:26.1]}
66... Rxg2 {[%clk 0:00:23.1]} 67. Rxf5+ {[%clk 0:00:26.3]} 67... Kh4 {[%clk
0:00:24.7]} 68. Rxh5+ {[%clk 0:00:27.3]} 68... Kg3 {[%clk 0:00:26.2]} 69. Rhg5+
{[%clk 0:00:27.6]} 69... Kxf3 {[%clk 0:00:27.4]} 70. Rxg2 {[%clk 0:00:28.6]}
70... Rxg2 {[%clk 0:00:29]} 71. b4 {[%clk 0:00:26.5]} 71... Rc2 {[%clk
0:00:29.2]} 72. Rc5 {[%clk 0:00:25.5]} 72... Ke3 {[%clk 0:00:30.8]} 73. Re5+
{[%clk 0:00:24.7]} 73... Kd3 {[%clk 0:00:30.6]} 74. b5 {[%clk 0:00:23.4]} 74...
f3 {[%clk 0:00:27.6]} 75. Rf5 {[%clk 0:00:23]} 75... Ke3 {[%clk 0:00:28.3]} 76.
b6 {[%clk 0:00:17.9]} 76... Rc1# {[%clk 0:00:27.7]} 0-1

[Event "*** Titled Tuesday 3|2 Blitz"]
[Site "Chess.com"]
[Date "2015.02.24"]
[Round "2"]
[White "GasconJR"]
[Black "facu57"]
[Result "0-1"]
[WhiteElo "2254"]
[BlackElo "2099"]
[TimeControl "180+2"]
[EndTime "11:16:52 PST"]
[Termination "facu57 won by checkmate"]

1. e4 {[%clk 0:03:00]} 1... c6 {[%clk 0:02:57.9]} 2. d4 {[%clk 0:02:59.8]} 2...
d5 {[%clk 0:02:58.3]} 3. Nc3 {[%clk 0:03:01.5]} 3... dxe4 {[%clk 0:02:59.3]} 4.
Nxe4 {[%clk 0:03:03.2]} 4... Nf6 {[%clk 0:03:00.8]} 5. Nxf6+ {[%clk 0:03:02.5]}
5... exf6 {[%clk 0:03:02.7]} 6. Nf3 {[%clk 0:03:01.3]} 6... Bd6 {[%clk
0:03:03.8]} 7. Bd3 {[%clk 0:03:00.9]} 7... O-O {[%clk 0:03:04.2]} 8. O-O {[%clk
0:03:00.9]} 8... Bg4 {[%clk 0:03:05.3]} 9. h3 {[%clk 0:03:01.6]} 9... Bh5 {[%clk
0:03:06.6]} 10. c3 {[%clk 0:03:02]} 10... Nd7 {[%clk 0:03:07.6]} 11. Be3 {[%clk
0:02:22.1]} 11... Re8 {[%clk 0:03:07.9]} 12. Be2 {[%clk 0:02:21.1]} 12... Nf8
{[%clk 0:03:07.5]} 13. Nd2 {[%clk 0:02:21.2]} 13... Bg6 {[%clk 0:03:08.5]} 14.
Nc4 {[%clk 0:02:20]} 14... Bc7 {[%clk 0:03:09.2]} 15. a4 {[%clk 0:02:18]} 15...
a6 {[%clk 0:03:09.7]} 16. Qd2 {[%clk 0:02:17]} 16... b5 {[%clk 0:03:10.5]} 17.
axb5 {[%clk 0:02:12.8]} 17... cxb5 {[%clk 0:03:11.7]} 18. Na3 {[%clk 0:02:10.5]}
18... Qd6 {[%clk 0:03:11.1]} 19. Bf3 {[%clk 0:02:09.7]} 19... Qh2# {[%clk
0:03:11.2]} 0-1

[Event "*** Titled Tuesday 3|2 Blitz"]
[Site "Chess.com"]
[Date "2015.02.24"]
[Round "2"]
[White "xtremeungar"]
[Black "VerdeNotte"]
[Result "0-1"]
[WhiteElo "2156"]
[BlackElo "2513"]
[TimeControl "180+2"]
[EndTime "11:17:56 PST"]
[Termination "VerdeNotte won by resignation"]

1. e4 {[%clk 0:03:00]} 1... c5 {[%clk 0:02:51.8]} 2. Nf3 {[%clk 0:03:00.2]} 2...
d6 {[%clk 0:02:52.7]} 3. d4 {[%clk 0:03:01.4]} 3... cxd4 {[%clk 0:02:54]} 4.
Nxd4 {[%clk 0:03:03.3]} 4... Nf6 {[%clk 0:02:55]} 5. Nc3 {[%clk 0:03:04.8]} 5...
g6 {[%clk 0:02:55.2]} 6. Be3 {[%clk 0:03:05.7]} 6... Bg7 {[%clk 0:02:56.3]} 7.
f3 {[%clk 0:03:07]} 7... Nc6 {[%clk 0:02:57.3]} 8. Qd2 {[%clk 0:03:08.3]} 8...
O-O {[%clk 0:02:58.4]} 9. O-O-O {[%clk 0:03:09.4]} 9... d5 {[%clk 0:02:59.8]}
10. exd5 {[%clk 0:03:08.9]} 10... Nxd5 {[%clk 0:03:00.9]} 11. Nxc6 {[%clk
0:03:10.3]} 11... bxc6 {[%clk 0:03:02.3]} 12. Bd4 {[%clk 0:03:11.7]} 12... Nxc3
{[%clk 0:03:01.2]} 13. Qxc3 {[%clk 0:03:12.4]} 13... Bh6+ {[%clk 0:03:02.1]} 14.
Be3 {[%clk 0:03:13]} 14... Bxe3+ {[%clk 0:03:03.3]} 15. Qxe3 {[%clk 0:03:14.3]}
15... Qb6 {[%clk 0:03:04.5]} 16. Qxe7 {[%clk 0:03:15.3]} 16... Be6 {[%clk
0:03:05.1]} 17. Qa3 {[%clk 0:03:16.2]} 17... Rad8 {[%clk 0:03:04.9]} 18. Bd3
{[%clk 0:03:07.4]} 18... Rd5 {[%clk 0:03:05.3]} 19. Qc3 {[%clk 0:02:55.1]} 19...
Rfd8 {[%clk 0:02:46.9]} 20. h4 {[%clk 0:02:42]} 20... Qe3+ {[%clk 0:02:35.4]}
21. Qd2 {[%clk 0:02:35.3]} 21... Qc5 {[%clk 0:02:31.1]} 22. Qf4 {[%clk
0:02:22.2]} 22... Rxd3 {[%clk 0:02:28.3]} 0-1

[Event "*** Titled Tuesday 3|2 Blitz"]
[Site "Chess.com"]
[Date "2015.02.24"]
[Round "2"]
[White "jup1978"]
[Black "Rijeka1999"]
[Result "1-0"]
[WhiteElo "2137"]
[BlackElo "2262"]
[TimeControl "180+2"]
[EndTime "11:18:20 PST"]
[Termination "jup1978 won by resignation"]

1. e4 {[%clk 0:03:00]} 1... e5 {[%clk 0:02:58.3]} 2. Nf3 {[%clk 0:02:59.6]} 2...
Nc6 {[%clk 0:02:58.9]} 3. Bb5 {[%clk 0:03:01.2]} 3... a6 {[%clk 0:02:59.5]} 4.
Ba4 {[%clk 0:03:02.8]} 4... Nf6 {[%clk 0:03:00.5]} 5. Qe2 {[%clk 0:03:03.8]}
5... d6 {[%clk 0:02:56.1]} 6. c3 {[%clk 0:03:03.8]} 6... b5 {[%clk 0:02:52.8]}
7. Bb3 {[%clk 0:03:04.5]} 7... Be7 {[%clk 0:02:53.9]} 8. d4 {[%clk 0:03:04.2]}
8... O-O {[%clk 0:02:54.8]} 9. Nbd2 {[%clk 0:03:05.1]} 9... h6 {[%clk
0:02:50.1]} 10. O-O {[%clk 0:03:05]} 10... Re8 {[%clk 0:02:51.3]} 11. h3 {[%clk
0:03:03.1]} 11... Bf8 {[%clk 0:02:52]} 12. d5 {[%clk 0:03:03.8]} 12... Na5
{[%clk 0:02:52.6]} 13. Bc2 {[%clk 0:03:05.4]} 13... c6 {[%clk 0:02:52.6]} 14.
dxc6 {[%clk 0:03:04.7]} 14... Nxc6 {[%clk 0:02:52.9]} 15. Rd1 {[%clk 0:03:06.3]}
15... Bb7 {[%clk 0:02:51.4]} 16. Nf1 {[%clk 0:03:07]} 16... Qc7 {[%clk
0:02:49.7]} 17. N3h2 {[%clk 0:03:07]} 17... Rad8 {[%clk 0:02:48.9]} 18. Ng4
{[%clk 0:03:03.2]} 18... Nxg4 {[%clk 0:02:48.5]} 19. Qxg4 {[%clk 0:03:05.1]}
19... Ne7 {[%clk 0:02:37.8]} 20. Bxh6 {[%clk 0:02:59.1]} 20... Bc8 {[%clk
0:02:35.2]} 21. Qg3 {[%clk 0:02:59.9]} 21... f5 {[%clk 0:02:33.3]} 22. Bb3+
{[%clk 0:02:58]} 22... Kh7 {[%clk 0:02:25.3]} 23. Bg5 {[%clk 0:02:49.8]} 23...
Ng6 {[%clk 0:02:25.6]} 24. exf5 {[%clk 0:02:45.9]} 24... Bxf5 {[%clk 0:02:23.8]}
25. Ne3 {[%clk 0:02:47.3]} 25... Bc8 {[%clk 0:02:15]} 26. Nd5 {[%clk 0:02:44.5]}
26... Qa7 {[%clk 0:02:08]} 27. Bxd8 {[%clk 0:02:39.2]} 27... Rxd8 {[%clk
0:02:08.5]} 28. Bc2 {[%clk 0:02:39.6]} 28... Qf7 {[%clk 0:02:10]} 29. Bxg6+
{[%clk 0:02:34.3]} 29... Qxg6 {[%clk 0:02:10.6]} 30. Qh4+ {[%clk 0:02:35.6]} 1-0

[Event "*** Titled Tuesday 3|2 Blitz"]
[Site "Chess.com"]
[Date "2015.02.24"]
[Round "2"]
[White "Inopov"]
[Black "wonderfultime"]
[Result "1-0"]
[WhiteElo "2473"]
[BlackElo "2564"]
[TimeControl "180+2"]
[EndTime "11:20:34 PST"]
[Termination "Inopov won by resignation"]

1. d4 {[%clk 0:03:00]} 1... d5 {[%clk 0:02:57.2]} 2. c4 {[%clk 0:03:00.6]} 2...
c6 {[%clk 0:02:58.3]} 3. cxd5 {[%clk 0:03:01.5]} 3... cxd5 {[%clk 0:02:59.4]} 4.
Bf4 {[%clk 0:03:03.2]} 4... Nf6 {[%clk 0:02:59.4]} 5. Nc3 {[%clk 0:03:03.9]}
5... Nc6 {[%clk 0:02:59]} 6. e3 {[%clk 0:03:05.5]} 6... e6 {[%clk 0:02:49]} 7.
Bd3 {[%clk 0:03:04.3]} 7... Bd6 {[%clk 0:02:49.7]} 8. Bxd6 {[%clk 0:03:04.3]}
8... Qxd6 {[%clk 0:02:51.6]} 9. f4 {[%clk 0:03:05.7]} 9... a6 {[%clk 0:02:52.5]}
10. Nf3 {[%clk 0:03:06.4]} 10... b5 {[%clk 0:02:53.6]} 11. O-O {[%clk
0:03:04.5]} 11... Bb7 {[%clk 0:02:55.1]} 12. Ne5 {[%clk 0:02:57.2]} 12... O-O
{[%clk 0:02:54.6]} 13. Qf3 {[%clk 0:02:55.5]} 13... Ne7 {[%clk 0:02:51.1]} 14.
Rac1 {[%clk 0:02:51.5]} 14... Rac8 {[%clk 0:02:50.9]} 15. g4 {[%clk 0:02:42.6]}
15... b4 {[%clk 0:02:42]} 16. Na4 {[%clk 0:02:43.5]} 16... Ne4 {[%clk
0:02:43.2]} 17. Nc5 {[%clk 0:02:37.4]} 17... Nxc5 {[%clk 0:01:27.5]} 18. dxc5
{[%clk 0:02:39.3]} 18... Qc7 {[%clk 0:01:21.5]} 19. g5 {[%clk 0:02:25]} 19...
Nf5 {[%clk 0:00:55.8]} 20. c6 {[%clk 0:02:20.2]} 20... Ba8 {[%clk 0:00:55]} 21.
Bxf5 {[%clk 0:02:14.7]} 21... exf5 {[%clk 0:00:56.9]} 22. Qxd5 {[%clk
0:02:16.2]} 22... Kh8 {[%clk 0:00:58.2]} 23. Rf3 {[%clk 0:02:08]} 23... Rcd8
{[%clk 0:00:54.4]} 24. Qc4 {[%clk 0:02:03.3]} 24... a5 {[%clk 0:00:38.3]} 25. g6
{[%clk 0:02:03.6]} 25... f6 {[%clk 0:00:10.5]} 26. Rh3 {[%clk 0:02:01.2]} 26...
h6 {[%clk 0:00:09.8]} 27. Nf7+ {[%clk 0:02:02.4]} 27... Rxf7 {[%clk 0:00:11.2]}
28. Qxf7 {[%clk 0:02:03.7]} 1-0

[Event "*** Titled Tuesday 3|2 Blitz"]
[Site "Chess.com"]
[Date "2015.02.24"]
[Round "2"]
[White "gumersindo"]
[Black "manitodeplomo"]
[Result "0-1"]
[WhiteElo "2107"]
[BlackElo "2336"]
[TimeControl "180+2"]
[EndTime "11:20:51 PST"]
[Termination "manitodeplomo won by resignation"]

1. d4 {[%clk 0:03:00]} 1... c5 {[%clk 0:02:56.8]} 2. d5 {[%clk 0:03:00.3]} 2...
Nf6 {[%clk 0:02:56.2]} 3. Nc3 {[%clk 0:02:59.8]} 3... d6 {[%clk 0:02:55.9]} 4.
e4 {[%clk 0:02:59.1]} 4... g6 {[%clk 0:02:57.7]} 5. Nf3 {[%clk 0:02:56.7]} 5...
Bg7 {[%clk 0:02:59]} 6. h3 {[%clk 0:02:57.5]} 6... O-O {[%clk 0:02:59.3]} 7. Be3
{[%clk 0:02:56.2]} 7... b5 {[%clk 0:02:55.5]} 8. Bxb5 {[%clk 0:02:46.1]} 8...
Nxe4 {[%clk 0:02:55.4]} 9. O-O {[%clk 0:02:38.6]} 9... Bxc3 {[%clk 0:02:54.6]}
10. bxc3 {[%clk 0:02:38.2]} 10... Nxc3 {[%clk 0:02:55]} 11. Qd3 {[%clk 0:02:39]}
11... Nxb5 {[%clk 0:02:56.4]} 12. Qxb5 {[%clk 0:02:38.6]} 12... Ba6 {[%clk
0:02:57.9]} 13. Qb2 {[%clk 0:02:40]} 13... Bxf1 {[%clk 0:02:58.3]} 14. Rxf1
{[%clk 0:02:40]} 14... f6 {[%clk 0:02:35.6]} 15. h4 {[%clk 0:02:29.3]} 15... Nd7
{[%clk 0:02:33.9]} 16. Bh6 {[%clk 0:02:22.5]} 16... Rf7 {[%clk 0:02:21.5]} 17.
Re1 {[%clk 0:02:21.8]} 17... Rb8 {[%clk 0:02:19.6]} 18. Qc3 {[%clk 0:02:21.9]}
18... Ne5 {[%clk 0:02:18.7]} 19. Nd2 {[%clk 0:02:20.1]} 19... Qb6 {[%clk
0:02:04.8]} 20. Qh3 {[%clk 0:02:19.9]} 20... Qb4 {[%clk 0:01:38.4]} 21. Re4
{[%clk 0:02:17.4]} 21... Qa5 {[%clk 0:01:13.5]} 22. h5 {[%clk 0:02:10.1]} 22...
g5 {[%clk 0:00:56.3]} 23. Qe3 {[%clk 0:02:03.4]} 23... Qxa2 {[%clk 0:00:45.3]}
24. f4 {[%clk 0:02:03.7]} 24... Ng4 {[%clk 0:00:39.6]} 25. Qg3 {[%clk
0:01:54.6]} 25... Nxh6 {[%clk 0:00:34.7]} 26. fxg5 {[%clk 0:01:54.9]} 26... Nf5
{[%clk 0:00:35.9]} 27. Qg4 {[%clk 0:01:51.9]} 27... fxg5 {[%clk 0:00:32.9]} 28.
Qxg5+ {[%clk 0:01:52.8]} 28... Kh8 {[%clk 0:00:33.7]} 29. Nf3 {[%clk 0:01:47]}
29... Qxd5 {[%clk 0:00:32.6]} 30. Rf4 {[%clk 0:01:43.4]} 30... Rg8 {[%clk
0:00:32.3]} 0-1

[Event "*** Titled Tuesday 3|2 Blitz"]
[Site "Chess.com"]
[Date "2015.02.24"]
[Round "2"]
[White "AlexanderL"]
[Black "pKiLz5Rn9b"]
[Result "1-0"]
[WhiteElo "2517"]
[BlackElo "2246"]
[TimeControl "180+2"]
[EndTime "11:21:17 PST"]
[Termination "AlexanderL won by checkmate"]

1. b3 {[%clk 0:03:00]} 1... Nf6 {[%clk 0:02:56.9]} 2. Bb2 {[%clk 0:03:01.6]}
2... d5 {[%clk 0:02:58.1]} 3. e3 {[%clk 0:03:03.5]} 3... g6 {[%clk 0:02:58.9]}
4. Nf3 {[%clk 0:03:03.7]} 4... Bg7 {[%clk 0:03:00.3]} 5. g3 {[%clk 0:03:05]}
5... O-O {[%clk 0:03:01.6]} 6. Bg2 {[%clk 0:03:06.3]} 6... c5 {[%clk 0:03:03]}
7. O-O {[%clk 0:03:07.4]} 7... Nc6 {[%clk 0:03:04.4]} 8. d4 {[%clk 0:03:07.4]}
8... Ne4 {[%clk 0:02:58.6]} 9. Nbd2 {[%clk 0:03:05.4]} 9... Bf5 {[%clk
0:02:57.5]} 10. Nh4 {[%clk 0:03:04.9]} 10... Nxd2 {[%clk 0:02:56.3]} 11. Qxd2
{[%clk 0:03:06.1]} 11... Be6 {[%clk 0:02:47.4]} 12. Nf3 {[%clk 0:03:06.8]} 12...
Qc7 {[%clk 0:02:44.8]} 13. c3 {[%clk 0:03:06.2]} 13... b6 {[%clk 0:02:44]} 14.
Ng5 {[%clk 0:03:05.2]} 14... Rad8 {[%clk 0:02:41]} 15. Nxe6 {[%clk 0:03:05.6]}
15... fxe6 {[%clk 0:02:42.3]} 16. f4 {[%clk 0:03:07.5]} 16... c4 {[%clk
0:02:29.7]} 17. h4 {[%clk 0:02:59.5]} 17... b5 {[%clk 0:02:26.7]} 18. b4 {[%clk
0:02:58.7]} 18... a5 {[%clk 0:02:21.7]} 19. a3 {[%clk 0:02:59.8]} 19... Ra8
{[%clk 0:02:20.2]} 20. Bh3 {[%clk 0:02:57.2]} 20... Qd6 {[%clk 0:02:18.6]} 21.
Kg2 {[%clk 0:02:57.7]} 21... Ra7 {[%clk 0:02:17.1]} 22. Bg4 {[%clk 0:02:57.1]}
22... Rfa8 {[%clk 0:02:17.9]} 23. h5 {[%clk 0:02:51.8]} 23... axb4 {[%clk
0:02:16.9]} 24. axb4 {[%clk 0:02:50.9]} 24... Rxa1 {[%clk 0:02:15.3]} 25. Rxa1
{[%clk 0:02:52.8]} 25... Rxa1 {[%clk 0:02:16.8]} 26. Bxa1 {[%clk 0:02:54.2]}
26... Kf7 {[%clk 0:02:12.5]} 27. hxg6+ {[%clk 0:02:53.9]} 27... hxg6 {[%clk
0:02:13.7]} 28. Qa2 {[%clk 0:02:53.2]} 28... Qd7 {[%clk 0:01:58.3]} 29. Qa6
{[%clk 0:02:47.6]} 29... Nd8 {[%clk 0:01:53.9]} 30. Bb2 {[%clk 0:02:44.6]} 30...
Qc6 {[%clk 0:01:53.6]} 31. Qa5 {[%clk 0:02:41]} 31... Ke8 {[%clk 0:01:54.8]} 32.
Bd1 {[%clk 0:02:38.3]} 32... Kd7 {[%clk 0:01:49]} 33. Bc2 {[%clk 0:02:37.2]}
33... Kc8 {[%clk 0:01:38.9]} 34. Bc1 {[%clk 0:02:26]} 34... Bh6 {[%clk
0:01:39.5]} 35. Bxg6 {[%clk 0:02:16.6]} 35... e5 {[%clk 0:01:40.7]} 36. Bf5+
{[%clk 0:02:15]} 36... e6 {[%clk 0:01:41.9]} 37. Bg4 {[%clk 0:02:15.1]} 37...
exf4 {[%clk 0:01:34.3]} 38. exf4 {[%clk 0:02:17]} 38... Bf8 {[%clk 0:01:25.5]}
39. f5 {[%clk 0:02:13.3]} 39... exf5 {[%clk 0:01:03.2]} 40. Bxf5+ {[%clk
0:02:13.2]} 40... Ne6 {[%clk 0:01:04.7]} 41. Bf4 {[%clk 0:02:02.9]} 41... Kd7
{[%clk 0:00:53.1]} 42. Qa7+ {[%clk 0:02:01.5]} 42... Ke8 {[%clk 0:00:52.2]} 43.
Bg6+ {[%clk 0:01:58.6]} 43... Kd8 {[%clk 0:00:53.3]} 44. Qb8+ {[%clk 0:01:59.2]}
44... Kd7 {[%clk 0:00:54.4]} 45. Qe8# {[%clk 0:01:58.5]} 1-0